[Event "ISR-chT U14 2018"]
[Site "Nir HaEmek"]
[Date "2018.08.14"]
[Round "6"]
[White "Shteiman, Yuval"]
[Black "Verny, David"]
[Result "0-1"]
[ECO "C54"]
[WhiteElo "1584"]
[BlackElo "1946"]
[Annotator "NA"]
[PlyCount "106"]
[EventDate "2018.08.12"]
[EventType "team-tourn"]
[EventCountry "ISR"]
[SourceTitle "playchess.com"]
[Source "ChessBase"]
[SourceQuality "1"]
[TimeControl "3060+10"]

1. e4 {[%emt 0:00:53]} e5 {[%emt 0:00:56]} 2. Nf3 {[%emt 0:00:01]} Nc6 {[%emt 0:00:07]} 3. Bc4 {[%emt 0:00:03]} Bc5 {[%emt 0:00:11]} 4. c3 {[%emt 0:00:05]} Nf6 {[%emt 0:00:05]} 5. d3 {[%emt 0:00:03]} d6 {[%emt 0:00:12]} 6. O-O {[%emt 0:00:04]} O-O {[%emt 0:00:08]} 7. Nbd2 {[%emt 0:00:23]} a6 {[%emt 0:00:14]} 8. Re1 {[%emt 0:00:21]} Ba7 {[%emt 0:00:09]} 9. Nf1 {[%emt 0:00:38]} Ne7 {[%emt 0:00:12]} 10. Ng3 {[%emt 0:01:06]} Ng6 {[%emt 0:50:26]} 11. h3 {[%emt 0:01:21]} Re8 $14 {[%emt 0:00:00]} 12. Bb3 {[%emt 0:03:03]} c6 {[%emt 0:00:00]} 13. d4 {[%emt 0:01:05]} h6 {[%emt 0:00:00]} 14. a3 {[%emt 0:03:37]} Qc7 {[%emt 0:00:00]} 15. Qc2 {[%emt 0:02:11]} b5 {[%emt 0:00:00]} 16. Be3 {[%emt 0:02:01]} Bb7 {[%emt 0:00:00]} 17. Rad1 {[%emt 0:03:21]} c5 {[%emt 0:00:00]} 18. d5 {[%emt 0:04:39]} c4 {[%emt 0:00:00]} 19. Ba2 {[%emt 0:00:29]} Bxe3 {[%emt 0:00:00]} 20. fxe3 {[%emt 0:00:49]} Nd7 {[%emt 0:00:00]} 21. Bb1 {[%emt 0:00:47]} Nc5 {[%emt 0:00:00]} 22. Qf2 {[%emt 0:01:15]} Bc8 {[%emt 0:00:00]} 23. Nh2 {[%emt 0:01:27]} Rf8 {[%emt 0:00:00]} 24. Nf5 {[%emt 0:02:02]} Ne7 {[%emt 0:00:00]} 25. Ng4 {[%emt 0:01:24]} h5 {[%emt 0:00:00]} 26. Qh4 {[%emt 0:09:11]} Bxf5 {[%emt 0:00:00]} 27. Nf6+ {[%emt 0:02:40]} gxf6 {[%emt 0:00:00]} 28. exf5 {[%emt 0:00:09]} Kg7 {[%emt 0:00:00]} 29. e4 {[%emt 0:02:33]} Rh8 {[%emt 0:00:00]} 30. Re3 {[%emt 0:00:43]} Rag8 {[%emt 0:00:00]} 31. Rg3+ {[%emt 0:00:36]} Kf8 {[%emt 0:00:00]} 32. Qxf6 {[%emt 0:00:38]} Nd7 {[%emt 0:00:00]} 33. Rxg8+ {[%emt 0:00:35]} Rxg8 {[%emt 0:00:00]} 34. Qh6+ {[%emt 0:00:07]} Ke8 {[%emt 0:00:00]} 35. Qxh5 {[%emt 0:01:43]} Qa7+ {[%emt 0:00:00]} 36. Kf1 {[%emt 0:00:07]} Qe3 {[%emt 0:00:00]} 37. Qh4 {[%emt 0:00:58]} Nc5 {[%emt 0:00:00]} 38. Qf2 {[%emt 0:00:15]} Qg5 {[%emt 0:00:00]} 39. Re1 {[%emt 0:00:45]} Nc8 {[%emt 0:00:00]} 40. g4 {[%emt 0:00:37]} Nb6 {[%emt 0:00:00]} 41. Qe3 {[%emt 0:00:15]} Qh4 {[%emt 0:00:00]} 42. Kg2 {[%emt 0:00:16]} Nbd7 {[%emt 0:00:00]} 43. Qg3 {[%emt 0:00:21]} Qg5 {[%emt 0:00:00]} 44. Qe3 {[%emt 0:00:06]} Qg7 {[%emt 0:00:00]} 45. Kh2 {[%emt 0:00:25]} Nf6 {[%emt 0:00:00]} 46. Rg1 {[%emt 0:00:07]} Rh8 {[%emt 0:00:00]} 47. Qe2 {[%emt 0:00:27]} Qg5 {[%emt 0:00:00]} 48. Qf2 {[%emt 0:01:52]} Nxg4+ {[%emt 0:00:00]} 49. Rxg4 {[%emt 0:00:15]} Qxg4 {[%emt 0:00:00]} 50. Qg3 {[%emt 0:00:15]} Qxg3+ {[%emt 0:00:00]} 51. Kxg3 {[%emt 0:00:02]} Ke7 {[%emt 0:00:00]} 52. Bc2 {[%emt 0:00:08]} Kf6 {[%emt 0:00:00]} 53. Bb1 {[%emt 0:00:01]} Na4 {[%emt 0:00:00]} 0-1

[Event "ISR-chT U14 2018"]
[Site "Nir HaEmek"]
[Date "2018.08.14"]
[Round "6"]
[White "Qasem, Huda"]
[Black "Tsirilman, Guy"]
[Result "0-1"]
[ECO "B26"]
[WhiteElo "1560"]
[BlackElo "1753"]
[Annotator "NA"]
[PlyCount "67"]
[EventDate "2018.08.12"]
[EventType "team-tourn"]
[EventCountry "ISR"]
[SourceTitle "playchess.com"]
[Source "ChessBase"]
[SourceQuality "1"]
[TimeControl "3060+10"]

1. e4 {[%emt 0:00:56]} c5 {[%emt 0:01:09]} 2. Nc3 {[%emt 0:00:12]} Nc6 {[%emt 0:00:05]} 3. g3 {[%emt 0:00:22]} g6 {[%emt 0:00:05]} 4. Bg2 {[%emt 0:00:06]} Bg7 {[%emt 0:00:11]} 5. d3 {[%emt 0:00:22]} d6 {[%emt 0:00:13]} 6. Be3 {[%emt 0:00:15]} Rb8 {[%emt 0:00:14]} 7. Qd2 {[%emt 0:00:55]} h5 {[%emt 0:00:15]} 8. Nge2 {[%emt 0:01:41]} b5 {[%emt 0:00:26]} 9. d4 {[%emt 0:03:34]} cxd4 {[%emt 0:03:43]} 10. Nxd4 {[%emt 0:00:20]} Nxd4 {[%emt 0:00:08]} 11. Bxd4 {[%emt 0:00:17]} Bxd4 {[%emt 0:02:00]} 12. Qxd4 {[%emt 0:00:05]} Nf6 {[%emt 0:00:04]} 13. Qxa7 {[%emt 0:05:10]} Qb6 {[%emt 0:02:36]} 14. Qxb6 {[%emt 0:00:20]} Rxb6 {[%emt 0:00:07]} 15. O-O-O {[%emt 0:01:12]} Bb7 {[%emt 0:00:36]} 16. f3 {[%emt 0:05:17]} O-O {[%emt 0:01:07]} 17. Nd5 {[%emt 0:03:46]} Bxd5 {[%emt 0:01:07]} 18. exd5 {[%emt 0:00:02]} b4 {[%emt 0:01:37]} 19. Rhe1 {[%emt 0:01:49]} Rb7 {[%emt 0:00:32]} 20. f4 {[%emt 0:03:27]} Ra8 {[%emt 0:00:34]} 21. Rd3 {[%emt 0:03:28]} Rxa2 {[%emt 0:01:40]} 22. Rde3 {[%emt 0:02:18]} Kf8 {[%emt 0:01:29]} 23. Rb3 {[%emt 0:01:47]} Ra5 {[%emt 0:02:07]} 24. c3 {[%emt 0:06:45]} Ra1+ {[%emt 0:01:14]} 25. Kd2 {[%emt 0:00:05]} bxc3+ {[%emt 0:00:12]} 26. Kc2 {[%emt 0:02:37]} Rxb3 {[%emt 0:00:09]} 27. Rxa1 {[%emt 0:00:04]} Rxb2+ {[%emt 0:00:04]} 28. Kxc3 {[%emt 0:00:10]} Rxg2 {[%emt 0:00:05]} 29. Ra8+ {[%emt 0:00:18]} Kg7 {[%emt 0:00:15]} 30. Kc4 {[%emt 0:00:59]} Rc2+ {[%emt 0:00:30]} 31. Kd3 {[%emt 0:00:20]} Rc5 {[%emt 0:00:05]} 32. Ra7 {[%emt 0:00:09]} Nxd5 {[%emt 0:00:34]} 33. Ra2 {[%emt 0:00:45]} Nb4+ {[%emt 0:00:15]} 34. Kd4 {[%emt 0:06:47]} 0-1

[Event "ISR-chT U14 2018"]
[Site "Nir HaEmek"]
[Date "2018.08.14"]
[Round "7"]
[White "Milikow, Yoav"]
[Black "Ben Ari, Yannay"]
[Result "0-1"]
[ECO "A80"]
[WhiteElo "2186"]
[BlackElo "2022"]
[Annotator "NA"]
[PlyCount "54"]
[EventDate "2018.08.12"]
[EventType "team-tourn"]
[EventCountry "ISR"]
[SourceTitle "playchess.com"]
[Source "ChessBase"]
[SourceQuality "1"]
[TimeControl "3060+10"]

1. d4 {[%emt 0:00:55]} f5 {[%emt 0:00:56]} 2. Bg5 {[%emt 0:00:12]} c6 {[%emt 0:00:07]} 3. e3 {[%emt 0:00:12]} d5 {[%emt 0:05:04]} 4. c4 {[%emt 0:00:15]} Nd7 {[%emt 0:02:24]} 5. cxd5 {[%emt 0:03:42]} cxd5 {[%emt 0:00:03]} 6. Nc3 {[%emt 0:00:24]} Ngf6 {[%emt 0:00:09]} 7. Bd3 {[%emt 0:02:17]} e6 {[%emt 0:00:14]} 8. g4 {[%emt 0:01:16]} fxg4 {[%emt 0:04:12]} 9. Nge2 {[%emt 0:02:57]} Bd6 {[%emt 0:09:26]} 10. Nf4 {[%emt 0:01:08]} Qe7 {[%emt 0:00:39]} 11. Rc1 {[%emt 0:02:12]} a6 {[%emt 0:01:01]} 12. h3 {[%emt 0:02:09]} g3 {[%emt 0:00:40]} 13. fxg3 {[%emt 0:00:03]} b5 {[%emt 0:02:08]} 14. O-O {[%emt 0:00:51]} b4 {[%emt 0:08:54]} 15. Na4 {[%emt 0:01:18]} Bb7 {[%emt 0:00:33]} 16. Nc5 {[%emt 0:06:04]} Nxc5 {[%emt 0:03:06]} 17. dxc5 {[%emt 0:00:03]} Bxc5 {[%emt 0:00:22]} 18. Nxe6 {[%emt 0:00:40]} Qxe6 {[%emt 0:00:24]} 19. Rxc5 {[%emt 0:00:11]} O-O {[%emt 0:02:18]} 20. Kh2 {[%emt 0:10:56]} Ne4 {[%emt 0:01:10]} 21. Bxe4 {[%emt 0:01:26]} Qxe4 {[%emt 0:00:02]} 22. Bf4 {[%emt 0:05:11]} d4 {[%emt 0:03:20]} 23. Qe2 {[%emt 0:00:51]} d3 {[%emt 0:00:14]} 24. Qf2 {[%emt 0:01:51]} Rac8 {[%emt 0:00:14]} 25. Rxc8 {[%emt 0:01:02]} Rxc8 {[%emt 0:00:09]} 26. Bc7 {[%emt 0:00:36]} h6 {[%emt 0:00:09]} 27. Rc1 {[%emt 0:01:29]} Rxc7 {[%emt 0:00:28]} 0-1

[Event "ISR-chT U14 2018"]
[Site "Nir HaEmek"]
[Date "2018.08.14"]
[Round "7"]
[White "Milikow, Elie"]
[Black "Mizrahi, Ido"]
[Result "1-0"]
[ECO "B12"]
[WhiteElo "2173"]
[BlackElo "1943"]
[Annotator "NA"]
[PlyCount "87"]
[EventDate "2018.08.12"]
[EventType "team-tourn"]
[EventCountry "ISR"]
[SourceTitle "playchess.com"]
[Source "ChessBase"]
[SourceQuality "1"]
[TimeControl "3060+10"]

1. e4 {[%emt 0:00:53]} c6 {[%emt 0:00:55]} 2. d4 {[%emt 0:00:04]} d5 {[%emt 0:00:03]} 3. e5 {[%emt 0:00:05]} Bf5 {[%emt 0:00:08]} 4. h4 {[%emt 0:00:09]} Qc7 {[%emt 0:01:53]} 5. Bd3 {[%emt 0:00:18]} Bxd3 {[%emt 0:00:59]} 6. Qxd3 {[%emt 0:00:11]} e6 {[%emt 0:00:36]} 7. Nf3 {[%emt 0:01:44]} a6 {[%emt 0:01:08]} 8. O-O {[%emt 0:01:01]} c5 {[%emt 0:00:54]} 9. c3 {[%emt 0:12:25]} Nc6 {[%emt 0:02:51]} 10. a3 {[%emt 0:01:26]} Nge7 {[%emt 0:04:56]} 11. b4 {[%emt 0:02:13]} c4 {[%emt 0:07:13]} 12. Qc2 {[%emt 0:00:17]} b5 {[%emt 0:00:10]} 13. a4 {[%emt 0:03:00]} Ra7 {[%emt 0:03:16]} 14. axb5 {[%emt 0:02:54]} axb5 {[%emt 0:00:05]} 15. Rxa7 {[%emt 0:01:00]} Qxa7 {[%emt 0:02:49]} 16. h5 {[%emt 0:07:55]} h6 {[%emt 0:03:23]} 17. Na3 {[%emt 0:03:25]} Qb7 {[%emt 0:01:05]} 18. Nh4 {[%emt 0:01:55]} Nc8 {[%emt 0:01:55]} 19. f4 {[%emt 0:01:49]} Be7 {[%emt 0:00:25]} 20. Nf3 {[%emt 0:00:27]} O-O {[%emt 0:00:48]} 21. f5 {[%emt 0:00:24]} exf5 {[%emt 0:00:23]} 22. Qxf5 {[%emt 0:00:29]} Nd8 {[%emt 0:00:08]} 23. Qg4 {[%emt 0:00:50]} Kh7 {[%emt 0:01:30]} 24. Nc2 {[%emt 0:00:57]} Ne6 {[%emt 0:01:50]} 25. Ne3 {[%emt 0:00:33]} Bd8 {[%emt 0:03:53]} 26. Nf5 {[%emt 0:01:20]} Rg8 {[%emt 0:02:01]} 27. Nd6 {[%emt 0:01:05]} Nxd6 {[%emt 0:00:35]} 28. exd6 {[%emt 0:00:03]} Bf6 {[%emt 0:01:27]} 29. Qf5+ {[%emt 0:01:08]} Kh8 {[%emt 0:00:02]} 30. Bxh6 {[%emt 0:01:05]} Qb6 {[%emt 0:03:38]} 31. Bxg7+ {[%emt 0:03:23]} Bxg7 {[%emt 0:00:38]} 32. h6 {[%emt 0:00:04]} Qxd6 {[%emt 0:02:01]} 33. hxg7+ {[%emt 0:00:20]} Rxg7 {[%emt 0:00:02]} 34. Ne5 {[%emt 0:00:29]} Nd8 {[%emt 0:00:42]} 35. Rf3 {[%emt 0:00:21]} Qe6 {[%emt 0:00:46]} 36. Qh5+ {[%emt 0:00:42]} Kg8 {[%emt 0:00:31]} 37. Qh4 {[%emt 0:00:05]} Nb7 {[%emt 0:01:09]} 38. Rf6 {[%emt 0:00:30]} Qe7 {[%emt 0:00:19]} 39. Qf4 {[%emt 0:00:15]} Nd8 {[%emt 0:00:05]} 40. Rh6 {[%emt 0:00:08]} Ne6 {[%emt 0:00:11]} 41. Qh2 {[%emt 0:00:09]} Kf8 {[%emt 0:00:02]} 42. Rh8+ {[%emt 0:00:03]} Rg8 {[%emt 0:00:01]} 43. Qh6+ {[%emt 0:00:16]} Ng7 {[%emt 0:00:01]} 44. Qh7 {[%emt 0:00:07]} 1-0

[Event "ISR-chT U14 2018"]
[Site "Nir HaEmek"]
[Date "2018.08.14"]
[Round "7"]
[White "Aizenberg, Benny"]
[Black "Yaniv, Yuval"]
[Result "1-0"]
[ECO "C97"]
[WhiteElo "2149"]
[BlackElo "2199"]
[Annotator "NA"]
[PlyCount "77"]
[EventDate "2018.08.12"]
[EventType "team-tourn"]
[EventCountry "ISR"]
[SourceTitle "playchess.com"]
[Source "ChessBase"]
[SourceQuality "1"]
[TimeControl "3060+10"]

1. e4 {[%emt 0:00:52]} e5 {[%emt 0:00:55]} 2. Nf3 {[%emt 0:00:02]} Nc6 {[%emt 0:00:08]} 3. Bb5 {[%emt 0:00:01]} a6 {[%emt 0:00:06]} 4. Ba4 {[%emt 0:00:02]} Nf6 {[%emt 0:00:08]} 5. O-O {[%emt 0:00:02]} Be7 {[%emt 0:00:06]} 6. Re1 {[%emt 0:00:13]} b5 {[%emt 0:00:06]} 7. Bb3 {[%emt 0:00:01]} d6 {[%emt 0:00:07]} 8. c3 {[%emt 0:00:04]} O-O {[%emt 0:00:07]} 9. h3 {[%emt 0:00:16]} Na5 {[%emt 0:00:06]} 10. Bc2 {[%emt 0:00:05]} c5 {[%emt 0:00:05]} 11. d4 {[%emt 0:00:04]} Qc7 {[%emt 0:00:06]} 12. Bg5 {[%emt 0:02:01]} Re8 {[%emt 0:05:56]} 13. d5 {[%emt 0:04:13]} c4 {[%emt 0:01:16]} 14. Nbd2 {[%emt 0:00:38]} Nd7 {[%emt 0:03:32]} 15. Bxe7 {[%emt 0:01:10]} Rxe7 {[%emt 0:00:06]} 16. Nf1 {[%emt 0:00:03]} Nf8 {[%emt 0:03:49]} 17. Ng3 {[%emt 0:04:10]} Qd8 {[%emt 0:02:12]} 18. Nf5 {[%emt 0:04:37]} Bxf5 {[%emt 0:00:24]} 19. exf5 {[%emt 0:00:02]} Rb7 {[%emt 0:04:54]} 20. Nd2 {[%emt 0:00:53]} Nd7 {[%emt 0:02:12]} 21. Ne4 {[%emt 0:02:08]} Nf6 {[%emt 0:00:24]} 22. Nxf6+ {[%emt 0:02:20]} Qxf6 {[%emt 0:00:14]} 23. b4 {[%emt 0:01:23]} cxb3 {[%emt 0:00:10]} 24. axb3 {[%emt 0:00:01]} Qd8 {[%emt 0:00:34]} 25. f6 {[%emt 0:02:17]} g6 {[%emt 0:05:21]} 26. Qd2 {[%emt 0:00:57]} Rc8 {[%emt 0:00:33]} 27. Rxa5 {[%emt 0:01:47]} Qxf6 {[%emt 0:00:24]} 28. Rxa6 {[%emt 0:00:23]} Rbc7 {[%emt 0:00:10]} 29. Re3 {[%emt 0:02:13]} Kg7 {[%emt 0:00:14]} 30. Rf3 {[%emt 0:01:09]} Qe7 {[%emt 0:00:28]} 31. Rb6 {[%emt 0:02:20]} Rc5 {[%emt 0:01:23]} 32. b4 {[%emt 0:03:43]} Rc4 {[%emt 0:00:11]} 33. Rxb5 {[%emt 0:01:32]} f5 {[%emt 0:00:10]} 34. Bb3 {[%emt 0:00:49]} R4c7 {[%emt 0:01:12]} 35. c4 {[%emt 0:00:15]} e4 {[%emt 0:00:11]} 36. Rc3 {[%emt 0:00:46]} Rf8 {[%emt 0:00:22]} 37. c5 {[%emt 0:00:28]} f4 {[%emt 0:00:22]} 38. cxd6 {[%emt 0:00:22]} Qxd6 {[%emt 0:00:05]} 39. Rxc7+ {[%emt 0:00:01]} 1-0

[Event "ISR-chT U14 2018"]
[Site "Nir HaEmek"]
[Date "2018.08.14"]
[Round "7"]
[White "Sokolovsky, Yahli"]
[Black "Kochavi, Ori"]
[Result "1-0"]
[ECO "B15"]
[WhiteElo "2062"]
[BlackElo "2138"]
[Annotator "NA"]
[PlyCount "123"]
[EventDate "2018.08.12"]
[EventType "team-tourn"]
[EventCountry "ISR"]
[SourceTitle "playchess.com"]
[Source "ChessBase"]
[SourceQuality "1"]
[TimeControl "3060+10"]

1. e4 {[%emt 0:00:52]} c6 {[%emt 0:00:54]} 2. d4 {[%emt 0:00:10]} d5 {[%emt 0:00:04]} 3. Nc3 {[%emt 0:00:18]} dxe4 {[%emt 0:00:05]} 4. Nxe4 {[%emt 0:00:07]} Nf6 {[%emt 0:00:21]} 5. Nxf6+ {[%emt 0:00:22]} exf6 {[%emt 0:00:07]} 6. c3 {[%emt 0:00:27]} Bd6 {[%emt 0:00:31]} 7. Bd3 {[%emt 0:00:21]} Nd7 {[%emt 0:04:24]} 8. Qc2 {[%emt 0:04:16]} Nf8 {[%emt 0:04:32]} 9. Ne2 {[%emt 0:02:43]} Qc7 {[%emt 0:00:10]} 10. Bd2 {[%emt 0:01:56]} Be6 {[%emt 0:00:12]} 11. c4 {[%emt 0:01:36]} Ng6 {[%emt 0:06:32]} 12. O-O-O {[%emt 0:02:28]} Nf4 {[%emt 0:08:30]} 13. Nxf4 {[%emt 0:01:06]} Bxf4 {[%emt 0:00:06]} 14. Kb1 {[%emt 0:02:40]} Bxd2 {[%emt 0:00:31]} 15. Rxd2 {[%emt 0:00:31]} O-O-O {[%emt 0:01:06]} 16. Be4 {[%emt 0:02:03]} Kb8 {[%emt 0:01:40]} 17. g3 {[%emt 0:01:07]} Rhe8 {[%emt 0:01:30]} 18. Re1 {[%emt 0:03:05]} g6 {[%emt 0:00:27]} 19. Red1 {[%emt 0:07:33]} Bxc4 {[%emt 0:02:33]} 20. Rc1 {[%emt 0:03:32]} Bxa2+ {[%emt 0:04:58]} 21. Kxa2 {[%emt 0:01:10]} Rxe4 {[%emt 0:00:08]} 22. Qc3 {[%emt 0:03:12]} Rd5 {[%emt 0:01:10]} 23. Kb1 {[%emt 0:00:54]} Qe7 {[%emt 0:01:29]} 24. Qc4 {[%emt 0:02:06]} Re1 {[%emt 0:02:05]} 25. Qd3 {[%emt 0:00:54]} Rxc1+ {[%emt 0:00:46]} 26. Kxc1 {[%emt 0:00:02]} c5 {[%emt 0:03:39]} 27. Qe3 {[%emt 0:00:50]} Qxe3 {[%emt 0:00:36]} 28. fxe3 {[%emt 0:00:01]} cxd4 {[%emt 0:00:09]} 29. exd4 {[%emt 0:00:10]} f5 {[%emt 0:01:27]} 30. Kc2 {[%emt 0:00:23]} Kc7 {[%emt 0:00:05]} 31. Kd3 {[%emt 0:00:43]} Rd7 {[%emt 0:00:33]} 32. Re2 {[%emt 0:00:26]} Kd8 {[%emt 0:00:41]} 33. Kc4 {[%emt 0:00:45]} Re7 {[%emt 0:00:06]} 34. Rf2 {[%emt 0:00:57]} Kd7 {[%emt 0:00:06]} 35. Kd5 {[%emt 0:00:47]} h5 {[%emt 0:00:53]} 36. Rf3 {[%emt 0:01:26]} Re6 {[%emt 0:00:37]} 37. Ra3 {[%emt 0:01:14]} Rd6+ {[%emt 0:00:09]} 38. Kc5 {[%emt 0:00:26]} Rc6+ {[%emt 0:00:01]} 39. Kd5 {[%emt 0:00:16]} a6 {[%emt 0:00:20]} 40. Rb3 {[%emt 0:00:14]} b6 {[%emt 0:00:52]} 41. Ra3 {[%emt 0:00:32]} Rd6+ {[%emt 0:00:09]} 42. Kc4 {[%emt 0:00:07]} Rc6+ {[%emt 0:00:06]} 43. Kd5 {[%emt 0:00:30]} a5 {[%emt 0:00:01]} 44. Re3 {[%emt 0:00:53]} Rd6+ {[%emt 0:00:50]} 45. Kc4 {[%emt 0:00:02]} Re6 {[%emt 0:00:33]} 46. Rb3 {[%emt 0:00:06]} Kc7 {[%emt 0:00:33]} 47. Kd5 {[%emt 0:01:01]} Rd6+ {[%emt 0:00:04]} 48. Kc4 {[%emt 0:00:01]} Kc6 {[%emt 0:00:13]} 49. Rc3 {[%emt 0:00:41]} Kb7 {[%emt 0:00:49]} 50. Rb3 {[%emt 0:00:38]} Kc6 {[%emt 0:00:21]} 51. Rc3 {[%emt 0:00:01]} Kb7 {[%emt 0:00:01]} 52. Rb3 {[%emt 0:00:22]} Ka6 {[%emt 0:00:00]} 53. d5 {[%emt 0:00:29]} Kb7 {[%emt 0:00:20]} 54. Re3 {[%emt 0:00:01]} Rd7 {[%emt 0:00:03]} 55. Re8 {[%emt 0:00:18]} Kc7 {[%emt 0:00:05]} 56. Kd4 {[%emt 0:00:04]} Rd8 {[%emt 0:00:32]} 57. Re7+ {[%emt 0:00:06]} Rd7 {[%emt 0:00:01]} 58. Re8 {[%emt 0:00:01]} Kd6 {[%emt 0:00:14]} 59. Rb8 {[%emt 0:00:06]} Kc7 {[%emt 0:00:01]} 60. Re8 {[%emt 0:00:01]} Rd8 {[%emt 0:00:40]} 61. Re7+ {[%emt 0:00:04]} Rd7 {[%emt 0:00:01]} 62. Re8 {[%emt 0:01:07]} 1-0

[Event "ISR-chT U14 2018"]
[Site "Nir HaEmek"]
[Date "2018.08.14"]
[Round "7"]
[White "Verny, David"]
[Black "Sobel, Alon"]
[Result "0-1"]
[ECO "C11"]
[WhiteElo "1946"]
[BlackElo "1698"]
[Annotator "NA"]
[PlyCount "60"]
[EventDate "2018.08.12"]
[EventType "team-tourn"]
[EventCountry "ISR"]
[SourceTitle "playchess.com"]
[Source "ChessBase"]
[SourceQuality "1"]
[TimeControl "3060+10"]

1. e4 {[%emt 0:00:50]} e6 {[%emt 0:00:51]} 2. d4 {[%emt 0:00:05]} d5 {[%emt 0:00:04]} 3. Nc3 {[%emt 0:00:03]} Nf6 {[%emt 0:00:07]} 4. e5 {[%emt 0:00:03]} Nfd7 {[%emt 0:00:08]} 5. f4 {[%emt 0:00:05]} c5 {[%emt 0:00:05]} 6. Nf3 {[%emt 0:00:01]} Nc6 {[%emt 0:00:10]} 7. Be3 {[%emt 0:00:03]} a6 {[%emt 0:00:08]} 8. Be2 {[%emt 0:00:28]} b5 {[%emt 0:00:26]} 9. Qd2 {[%emt 0:01:08]} Qb6 {[%emt 0:01:28]} 10. O-O {[%emt 0:01:11]} cxd4 {[%emt 0:00:43]} 11. Nxd4 {[%emt 0:00:05]} Bc5 {[%emt 0:00:09]} 12. Rad1 {[%emt 0:00:03]} Nxd4 {[%emt 0:07:06]} 13. Bxd4 {[%emt 0:00:09]} Bxd4+ {[%emt 0:00:05]} 14. Qxd4 {[%emt 0:00:05]} O-O {[%emt 0:01:25]} 15. a4 {[%emt 0:07:26]} b4 {[%emt 0:03:02]} 16. Na2 {[%emt 0:00:11]} a5 {[%emt 0:00:07]} 17. Bb5 {[%emt 0:03:21]} Qxd4+ {[%emt 0:05:37]} 18. Rxd4 {[%emt 0:00:08]} Nc5 {[%emt 0:02:49]} 19. Nc1 {[%emt 0:01:01]} Ba6 {[%emt 0:00:28]} 20. Bxa6 {[%emt 0:01:38]} Rxa6 {[%emt 0:00:17]} 21. b3 {[%emt 0:00:08]} Rc6 {[%emt 0:00:24]} 22. f5 {[%emt 0:08:12]} Ne4 {[%emt 0:00:45]} 23. Nd3 {[%emt 0:00:31]} Rxc2 {[%emt 0:03:09]} 24. Nf4 {[%emt 0:00:53]} Nd2 {[%emt 0:00:27]} 25. fxe6 {[%emt 0:01:39]} fxe6 {[%emt 0:03:27]} 26. Rd1 {[%emt 0:00:39]} Nxb3 {[%emt 0:00:33]} 27. R4d3 {[%emt 0:00:01]} Rxf4 {[%emt 0:00:29]} 28. Rxb3 {[%emt 0:00:04]} Rff2 {[%emt 0:00:11]} 29. Rg3 {[%emt 0:00:47]} Rfe2 {[%emt 0:01:21]} 30. Rf1 {[%emt 0:00:06]} b3 {[%emt 0:00:17]} 0-1

[Event "ISR-chT U14 2018"]
[Site "Nir HaEmek"]
[Date "2018.08.14"]
[Round "7"]
[White "Zemach, Nadav"]
[Black "Friedland, Eldar"]
[Result "1-0"]
[ECO "C02"]
[WhiteElo "1901"]
[BlackElo "1876"]
[Annotator "NA"]
[PlyCount "69"]
[EventDate "2018.08.12"]
[EventType "team-tourn"]
[EventCountry "ISR"]
[SourceTitle "playchess.com"]
[Source "ChessBase"]
[SourceQuality "1"]
[TimeControl "3060+10"]

1. c4 {[%emt 0:00:51]} c6 {[%emt 0:01:04]} 2. d4 {[%emt 0:00:04]} d5 {[%emt 0:00:06]} 3. cxd5 {[%emt 0:00:04]} cxd5 {[%emt 0:00:06]} 4. Nc3 {[%emt 0:00:03]} Nc6 {[%emt 0:00:34]} 5. e4 {[%emt 0:00:04]} e6 {[%emt 0:03:22]} 6. e5 {[%emt 0:00:09]} Nge7 {[%emt 0:02:12]} 7. Nf3 {[%emt 0:00:19]} b6 {[%emt 0:00:40]} 8. Bd3 {[%emt 0:00:57]} Bb7 {[%emt 0:01:28]} 9. O-O {[%emt 0:00:36]} Ng6 {[%emt 0:02:44]} 10. Bg5 {[%emt 0:03:36]} f6 {[%emt 0:04:15]} 11. exf6 {[%emt 0:00:15]} gxf6 {[%emt 0:00:05]} 12. Bd2 {[%emt 0:00:10]} Qd7 {[%emt 0:01:10]} 13. Re1 {[%emt 0:01:44]} Bg7 {[%emt 0:01:51]} 14. h4 {[%emt 0:10:07]} Rg8 {[%emt 0:09:02]} 15. h5 {[%emt 0:00:36]} Nf8 {[%emt 0:00:04]} 16. Bf4 {[%emt 0:01:03]} O-O-O {[%emt 0:02:39]} 17. Nb5 {[%emt 0:01:21]} e5 {[%emt 0:03:15]} 18. Qc2 {[%emt 0:08:27]} Kb8 {[%emt 0:00:05]} 19. dxe5 {[%emt 0:00:05]} Qg4 {[%emt 0:04:05]} 20. Bg3 {[%emt 0:01:23]} fxe5 {[%emt 0:03:46]} 21. Nxe5 {[%emt 0:00:22]} Bxe5 {[%emt 0:01:11]} 22. Rxe5 {[%emt 0:00:07]} Ka8 {[%emt 0:01:48]} 23. Nc7+ {[%emt 0:01:45]} Kb8 {[%emt 0:00:01]} 24. Ree1 {[%emt 0:01:34]} Nb4 {[%emt 0:00:55]} 25. Qc3 {[%emt 0:01:28]} Rc8 {[%emt 0:07:17]} 26. Be2 {[%emt 0:01:58]} Qd7 {[%emt 0:00:48]} 27. Na6+ {[%emt 0:04:31]} Ka8 {[%emt 0:00:00]} 28. Qxb4 {[%emt 0:00:18]} d4 {[%emt 0:00:03]} 29. Rac1 {[%emt 0:01:49]} d3 {[%emt 0:00:23]} 30. Rxc8+ {[%emt 0:00:22]} Qxc8 {[%emt 0:00:01]} 31. Bxd3 {[%emt 0:00:44]} Ne6 {[%emt 0:00:53]} 32. Rxe6 {[%emt 0:00:33]} Bxa6 {[%emt 0:00:01]} 33. Be4+ {[%emt 0:00:22]} Bb7 {[%emt 0:00:02]} 34. Bxb7+ {[%emt 0:00:07]} Qxb7 {[%emt 0:00:26]} 35. Qe4 {[%emt 0:00:06]} 1-0

[Event "ISR-chT U14 2018"]
[Site "Nir HaEmek"]
[Date "2018.08.14"]
[Round "7"]
[White "Sherman, Reem"]
[Black "Guz, Ari"]
[Result "0-1"]
[ECO "B43"]
[WhiteElo "1757"]
[BlackElo "1921"]
[Annotator "NA"]
[PlyCount "62"]
[EventDate "2018.08.12"]
[EventType "team-tourn"]
[EventCountry "ISR"]
[SourceTitle "playchess.com"]
[Source "ChessBase"]
[SourceQuality "1"]
[TimeControl "3060+10"]

1. e4 {[%emt 0:00:53]} c5 {[%emt 0:00:51]} 2. Nf3 {[%emt 0:00:06]} e6 {[%emt 0:00:00]} 3. d4 {[%emt 0:00:11]} cxd4 {[%emt 0:00:06]} 4. Nxd4 {[%emt 0:00:04]} a6 {[%emt 0:00:05]} 5. Nc3 {[%emt 0:00:12]} Qc7 {[%emt 0:00:09]} 6. g3 {[%emt 0:00:25]} b6 {[%emt 0:00:09]} 7. Bg2 {[%emt 0:00:14]} Bb7 {[%emt 0:00:08]} 8. O-O {[%emt 0:00:06]} d6 {[%emt 0:00:17]} 9. Re1 {[%emt 0:00:24]} Nf6 {[%emt 0:01:04]} 10. Nd5 {[%emt 0:01:38]} exd5 {[%emt 0:00:47]} 11. exd5+ {[%emt 0:00:08]} Kd8 {[%emt 0:00:04]} 12. Bg5 {[%emt 0:01:05]} h6 {[%emt 0:04:48]} 13. Qh5 {[%emt 0:02:09]} Rg8 {[%emt 0:03:38]} 14. Bxf6+ {[%emt 0:01:04]} gxf6 {[%emt 0:00:40]} 15. Re6 {[%emt 0:00:45]} Rg5 {[%emt 0:01:42]} 16. Qf3 {[%emt 0:01:02]} Be7 {[%emt 0:04:07]} 17. Rae1 {[%emt 0:00:24]} Bxd5 {[%emt 0:02:16]} 18. Qxd5 {[%emt 0:13:44]} Rxd5 {[%emt 0:00:22]} 19. Bxd5 {[%emt 0:00:08]} Ra7 {[%emt 0:00:55]} 20. R6e4 {[%emt 0:00:23]} f5 {[%emt 0:12:14]} 21. Nxf5 {[%emt 0:01:03]} Bf6 {[%emt 0:00:05]} 22. Nxh6 {[%emt 0:01:05]} Qc5 {[%emt 0:02:18]} 23. c4 {[%emt 0:03:04]} Re7 {[%emt 0:00:31]} 24. Nxf7+ {[%emt 0:00:44]} Kd7 {[%emt 0:02:54]} 25. Be6+ {[%emt 0:00:22]} Kc7 {[%emt 0:00:05]} 26. Nh6 {[%emt 0:01:36]} Nc6 {[%emt 0:01:16]} 27. Nf5 {[%emt 0:01:55]} Rxe6 {[%emt 0:00:22]} 28. Rxe6 {[%emt 0:01:05]} Qxf5 {[%emt 0:00:02]} 29. Kg2 {[%emt 0:00:34]} Ne5 {[%emt 0:00:08]} 30. Re8 {[%emt 0:00:24]} Qf3+ {[%emt 0:00:06]} 31. Kg1 {[%emt 0:00:05]} Qh5 {[%emt 0:00:02]} 0-1